Cogmind - Beta 16.1 @@@ ROGUE MODE // 2026.02.26 @ 21:10:04 Player: JuustuToug Result: Destroyed by Executioner with Helical Railgun Performance ------------- Evolutions (8) 4000 Regions Visited (23) 4600 Robots Destroyed (330) 1650 Value Destroyed (13317) 13317 Prototype IDs (82) 1640 Alien Tech Used (5) 1000 Bonus (7600) 7600 TOTAL SCORE: 33807 Bonus ------- High Alert Combat Kills 58 Follower Combat Kills 2573 Hunted by Unchained 500 Registered with UFD 300 Met Optimus in HQ 500 Met Zhirov 300 Built Enhanced Grunts 300 A7 Reached Mainframe 300 Met R17 at Cetus 500 Met R17 at Research 2000 Scanned by Researcher 500 Met Optimus at Protoforge 1000 Friendly Fire -1231 Cogmind --------- Core Integrity 0/1450 Matter 300/300 Energy 100/100 System Corruption 19% Temperature Cool (0) Movement Flying (45) Location -2/Protoforge Parts ------- > --- POWER (2) -------- (None) > --- PROPULSION (5) --- Impulse Thruster Array > --- UTILITY (14) ----- Advanced Signal Interpreter Advanced Hacking Suite Advanced Hacking Suite System Mapper > --- WEAPON (2) ------- (None) > --- INVENTORY (5) ---- Experimental Sensor Array Core Cannon Core Stripper Peak State ------------ > --- POWER ------------ Vortex Chain Reactor > --- PROPULSION ------- Advanced Medium Treads Armored Heavy Treads High-density Centrium Heavy Treads > --- UTILITY ---------- Coolant Network High-capacity Storage Unit Experimental Sensor Array Advanced Signal Interpreter Core Analyzer SHELL Armor Experimental Force Field Advanced Hacking Suite Advanced Hacking Suite System Mapper Advanced System Shield > --- WEAPON ----------- Core Cannon > --- INVENTORY -------- Vortex Chain Reactor High-density Centrium Heavy Treads High-density Centrium Heavy Treads Advanced Power Amplifier Improved Matter Compressor Structural Scanner Experimental EM Shield Advanced Variable Charge Gun Enhanced Quantum Rifle Heavy Proton Cannon Matter Neutralizer Micro-nuke Launcher Advanced Remote Datajack Core Stripper [Rating: 210] Favorites ----------- Power Cooled Ion Engine Engine Cooled Ion Engine Power Core Enhanced Fission Core Reactor Quantum Reactor Propulsion Centrium Heavy Treads Treads Centrium Heavy Treads Leg Carbon-fiber Leg Wheel Wheel Hover Unit Improved Antigrav System Flight Unit Impulse Thruster Array Utility Advanced Hacking Suite Device Seismic Detector Storage Large Storage Unit Processor Improved Signal Interpreter Hackware Advanced Hacking Suite Protection Medium Regenerative Plating Artifact Phase Redirector Weapon Improved Assault Rifle Energy Gun Advanced Variable Charge Gun Energy Cannon Heavy Phase Cannon Ballistic Gun Improved Assault Rifle Ballistic Cannon Graviton Cannon Launcher Long-range Missile Launcher Special Weapon Advanced Remote Datajack Impact Weapon Heavy Flail Piercing Weapon Kinetic Spear Special Melee Weapon Datajack Build | -11 -10 -10 -9 -9 -8 -8 -8 -8 -6 -6 -6 -6 -5 -5 -5 -5 -4 -4 -3 -3 -2 -2 -2 ------- Run | Yrd Mat Min Mat Min Mat Sto Rec Scr Fac Ext Cet Arc Fac Upp Upp Zhi Pro Fac Res Tes Res Qua Frg Slots Evolved 16 | . . . 2 . 2 . . . 4 . . . 2 . . . . 2 2 . 2 . . Power 1 | . . . . . . . . . 1 . . . . . . . . . . . . . . Propulsion 3 | . . . 1 . 1 . . . . . . . . . . . . . . . 1 . . Utility 12 | . . . 1 . 1 . . . 3 . . . 2 . . . . 2 2 . 1 . . Weapon . | . . . . . . . . . . . . . . . . . . . . . . . . Parts Attached 324 | 7 4 2 24 1 20 27 2 2 30 49 26 7 8 2 . 2 . 20 16 26 8 32 9 Power 49 | 1 . 1 4 . 3 2 . . 4 10 4 1 1 . . . . 4 3 4 2 5 . Engine 20 | 1 . . 4 . 2 1 . . 3 8 1 . . . . . . . . . . . . Core 10 | . . 1 . . 1 1 . . 1 2 . . 1 . . . . 2 . 1 . . . Reactor 19 | . . . . . . . . . . . 3 1 . . . . . 2 3 3 2 5 . Propulsion 86 | 2 . . 7 . 9 7 1 2 10 21 5 . . . . . . 1 . 9 2 7 3 Treads 21 | 2 . . 1 . . . . . 3 3 3 . . . . . . 1 . 4 . 3 1 Leg 58 | . . . 6 . 9 7 1 2 4 18 2 . . . . . . . . 5 2 2 . Wheel 5 | . . . . . . . . . 3 . . . . . . . . . . . . 2 . Hover 1 | . . . . . . . . . . . . . . . . . . . . . . . 1 Flight 1 | . . . . . . . . . . . . . . . . . . . . . . . 1 Utility 118 | 2 1 1 3 1 5 9 1 . 10 12 11 6 6 . . 1 . 10 11 7 3 13 5 Device 71 | 1 . 1 2 1 2 7 . . 6 8 4 5 3 . . 1 . 8 5 3 2 9 3 Storage 9 | 1 1 . 1 . 1 . . . . . 1 . . . . . . 1 1 . . 1 1 Processor 11 | . . . . . 1 . . . 2 2 . . 1 . . . . . 4 . 1 . . Hackware 8 | . . . . . . . . . 1 . 1 1 2 . . . . . 1 2 . . . Protection 18 | . . . . . 1 2 1 . 1 2 5 . . . . . . 1 . 2 . 2 1 Artifact 1 | . . . . . . . . . . . . . . . . . . . . . . 1 . Weapon 71 | 2 3 . 10 . 3 9 . . 6 6 6 . 1 2 . 1 . 5 2 6 1 7 1 Energy Gun 17 | 2 . . 1 . . 3 . . 1 1 3 . . 1 . . . . 1 3 . 1 . Energy Cannon 13 | . 1 . . . . . . . 1 1 1 . . . . . . 2 . 2 1 4 . Ballistic Gun 24 | . 2 . 6 . 3 5 . . 1 3 2 . . . . 1 . . . . . . 1 Ballistic Cannon 1 | . . . . . . . . . . . . . . . . . . . . . . 1 . Launcher 6 | . . . 2 . . . . . 2 . . . . 1 . . . 1 . . . . . Special Weapon 6 | . . . . . . . . . 1 1 . . 1 . . . . 2 . 1 . . . Impact Weapon 2 | . . . . . . 1 . . . . . . . . . . . . . . . 1 . Slashing Weapon . | . . . . . . . . . . . . . . . . . . . . . . . . Piercing Weapon 1 | . . . . . . . . . . . . . . . . . . . 1 . . . . Special Melee Weapon 1 | . . . 1 . . . . . . . . . . . . . . . . . . . . Unidentified Prototypes 57 | . . . 4 1 . 5 1 . 2 . 11 . 1 . . 4 . . 4 7 . 13 4 Corrupted Parts 10 | . . . . . . . . . . . 8 . . . . . . . . . . . 2 System Corruption 47 | . . . . . . . . . . . 36 . . . . . . . . . . . 11 Parts Lost 67 | . . . . . 3 6 . . 16 19 . . . . 1 . . 4 1 6 1 . 10 Power 10 | . . . . . 1 . . . 3 3 . . . . . . . . 1 . 1 . 1 Propulsion 30 | . . . . . 2 3 . . 8 8 . . . . . . . 2 . 3 . . 4 Utility 20 | . . . . . . 3 . . 4 5 . . . . 1 . . 2 . 2 . . 3 Weapon 7 | . . . . . . . . . 1 3 . . . . . . . . . 1 . . 2 Highest Loss Streak 9 | . . . . . 1 3 . . 5 7 . . . . 1 . . 1 1 5 1 . 9 To Critical Strikes . | . . . . . . . . . . . . . . . . . . . . . . . . Average Backups 14 | 2 9 15 14 14 14 14 14 14 12 13 13 12 12 13 12 13 13 16 19 18 19 17 14 Power 1 | . 1 1 1 1 1 1 1 1 1 . 1 1 1 1 1 1 1 . . 1 2 1 . Propulsion 2 | . 1 2 2 4 3 2 . . . 2 2 2 2 2 2 2 2 2 4 2 2 3 1 Utility 4 | . 2 4 2 1 1 3 5 4 1 3 4 4 3 4 3 3 4 5 7 8 8 6 4 Weapon 6 | . 5 6 7 7 7 7 8 7 7 5 4 4 4 5 5 5 5 6 6 5 5 6 6 Tool/Special . | . . . . . . . . . . . . . . . . . . . . . . . . Unused Backups 85 | . 3 1 18 1 7 4 1 2 3 7 8 1 . 2 . 1 . 3 6 6 1 7 3 Power 7 | . 1 . 1 . 1 1 . . . 2 . . . . . . . . . . . . 1 Propulsion 21 | . . . 7 . . . . . 1 2 4 . . . . . . 2 4 . . . 1 Utility 22 | . 1 1 2 1 2 . 1 . . . 2 1 . 1 . 1 . 1 . 1 1 6 . Weapon 34 | . 1 . 8 . 4 3 . 2 1 3 2 . . 1 . . . . 2 5 . 1 1 Tool/Special 1 | . . . . . . . . . 1 . . . . . . . . . . . . . . Average Slot Usage (%) 92 | . 99 100 99 100 99 97 100 100 93 95 86 83 87 87 87 78 88 88 89 90 85 85 68 Engine 4 | . 14 . 9 11 7 3 9 9 8 9 5 . . . . . . . . . . . . Core 2 | . . 13 1 . 1 5 . . 1 2 . . 1 5 5 5 5 6 3 1 . . . Reactor 2 | . . . . . . . . . . . 7 13 9 5 5 5 5 3 4 7 7 7 3 Treads 7 | . 27 28 11 . . . . . 2 2 11 13 11 11 11 11 11 9 9 8 . 3 12 Leg 13 | . . . 21 33 35 35 36 36 20 21 2 . . . . . . . . 4 21 15 . Device 16 | . 13 14 21 22 13 13 17 18 19 13 12 9 13 17 16 15 17 25 21 15 8 13 12 Storage 6 | . 14 14 11 11 9 9 9 9 6 6 6 6 5 5 5 5 5 5 4 4 4 4 3 Processor 7 | . . . . . 4 9 9 9 12 11 7 6 5 5 5 5 5 5 9 14 13 11 7 Hackware 8 | . . . . . . . . . . 6 6 14 20 17 17 17 17 15 18 19 17 17 16 Protection 3 | . . . . . 8 3 . . 4 4 11 5 5 5 5 4 5 5 4 3 4 3 3 Energy Gun 3 | . 11 . . . . . 9 9 4 2 5 6 5 4 5 1 5 . 3 4 7 1 1 Energy Cannon 2 | . 2 14 5 . . . . . 1 . . . . . . . . 8 4 2 . 5 5 Ballistic Gun 7 | . 13 14 15 21 17 16 9 9 4 8 5 6 4 4 4 1 4 . . . . . . Peak Build Rating 210 | 7 9 12 26 32 32 35 41 36 60 67 120 118 127 127 129 130 130 141 152 163 181 203 210 Average Rating 86 | 5 8 11 19 24 29 31 33 34 53 57 106 111 125 126 127 116 128 134 147 154 178 177 188 On Entrance 84 | . 7 9 12 24 25 30 33 34 36 59 64 118 112 127 127 129 130 127 135 148 157 172 203 Avg Prop Armor Cover (%) 8 | . . . . . . . . . 10 8 . . . . . . . . . 4 . 4 14 Naked Turns . | . . . . . . . . . . . . . . . . . . . . . . . . Heaviest Build 147 | 14 32 32 40 37 42 41 38 36 62 58 88 80 79 79 78 77 80 106 108 112 123 146 147 Greatest Support 210 | 40 40 40 60 43 62 59 53 60 65 75 160 160 160 160 160 160 160 160 160 160 128 210 180 Greatest Overweight (x) 5 | . . . 2 . . . . . 5 2 1 . . . . . . . . 1 . 1 4 Average Overweight (x) . | . . . . . . . . . . . . . . . . . . . . . . . . Largest Inventory Capacity 20 | 8 15 15 15 15 15 15 15 15 15 15 15 15 15 15 15 15 15 20 20 20 20 20 20 Average Capacity 16 | 7 13 15 15 15 15 15 15 15 15 15 15 15 15 15 15 15 15 19 20 20 20 20 18 Most Carried 20 | 4 15 15 15 15 15 15 15 15 15 15 15 15 15 15 15 15 15 20 20 20 20 20 20 Average Carried 15 | 2 9 14 14 14 14 14 14 14 13 14 14 14 14 14 14 14 15 17 19 19 19 19 18 Final Capacity 20 | 8 15 15 15 15 15 15 15 15 15 15 15 15 15 15 15 15 15 20 20 20 20 20 5 Final Carried 20 | 4 15 15 15 15 15 15 14 15 15 15 15 15 15 15 14 15 15 18 20 20 20 20 5 Class Distribution -------------------- 28% | Scavenger-Mutant 23% | Mutant 17% | Hacker-Mutant 9% | Wizard-Mutant 7% | Commander-Mutant 4% | Skirmisher 4% | Wizard-Skirmisher Dominant Class ---------------- Mutant | -10/Materials Mutant | -10/Mines Mutant | -9/Materials Mutant | -9/Mines Mutant | -8/Materials Scavenger-Mutant | -8/Storage Commander-Mutant | -8/Recycling Commander-Mutant | -8/Scraptown Skirmisher | -6/Factory Scavenger-Mutant | -6/Extension Scavenger-Mutant | -6/Cetus Scavenger-Mutant | -6/Archives Scavenger-Mutant | -5/Factory Hacker-Mutant | -5/Upper Caves Hacker-Mutant | -5/Upper Caves Hacker-Mutant | -5/Zhirov Hacker-Mutant | -4/Proximity Caves Scavenger-Mutant | -4/Factory Hacker-Mutant | -3/Research Wizard-Mutant | -3/Testing Wizard-Mutant | -2/Research Wizard-Skirmisher | -2/Quarantine Wizard-Mutant | -2/Protoforge Resources | -11 -10 -10 -9 -9 -8 -8 -8 -8 -6 -6 -6 -6 -5 -5 -5 -5 -4 -4 -3 -3 -2 -2 -2 ----------- Run | Yrd Mat Min Mat Min Mat Sto Rec Scr Fac Ext Cet Arc Fac Upp Upp Zhi Pro Fac Res Tes Res Qua Frg Matter Collected 11167 | 225 391 146 687 234 776 1015 214 30 1035 1449 436 326 64 357 351 . 287 493 662 685 224 781 299 Remotely . | . . . . . . . . . . . . . . . . . . . . . . . . Salvage Created 13911 | 187 689 173 1407 150 964 1417 111 . 1483 1224 128 388 86 298 15 . 325 1166 548 1078 253 817 1004 Parts 750 | 13 59 13 87 18 70 80 8 . 58 69 18 26 5 9 . . 13 54 14 59 11 20 46 Haulers Intercepted 16 | . 1 . 5 . 3 5 . . 1 1 . . . . . . . . . . . . . Recyclers Shooed 10 | . 1 . . . 1 . . . 7 1 . . . . . . . . . . . . . Parts Field Recycled . | . . . . . . . . . . . . . . . . . . . . . . . . Retrieved Matter . | . . . . . . . . . . . . . . . . . . . . . . . . Parts Self-Destructed 27 | . . . . . . . . . . . . . . 11 3 . 13 . . . . . . Prevented 3 | . . . . . . . . . . . . . . . 2 . 1 . . . . . . Parts Restored . | . . . . . . . . . . . . . . . . . . . . . . . . Kills | -11 -10 -10 -9 -9 -8 -8 -8 -8 -6 -6 -6 -6 -5 -5 -5 -5 -4 -4 -3 -3 -2 -2 -2 ------- Run | Yrd Mat Min Mat Min Mat Sto Rec Scr Fac Ext Cet Arc Fac Upp Upp Zhi Pro Fac Res Tes Res Qua Frg Combat Hostiles Destroyed 231 | . 14 8 21 10 19 18 2 . 24 26 1 1 . 8 1 . 10 24 7 17 2 7 11 Guns 104 | . 14 1 11 2 16 16 2 . 14 10 1 1 . . . . 1 . 1 7 2 4 1 Cannons 49 | . . 7 7 . . . . . 2 4 . . . . . . . 13 4 7 . 1 4 AOE 64 | . . . 2 8 3 2 . . 6 12 . . . 8 1 . 9 9 . 3 . 1 . Classes Destroyed 25 | 2 7 . 4 . 1 1 . . 3 1 . . . 2 . . . . 2 1 . 1 . Worker 21 | . 6 . 1 1 3 1 . . 2 4 . . . . . . . 1 . 2 . . . Builder 16 | . 3 . 2 . . 2 . . 1 6 . . . . . . . 1 . . 1 . . Tunneler 10 | 4 . 1 . . 1 . . . 1 3 . . . . . . . . . . . . . Hauler 16 | . 1 . 5 . 3 5 . . 1 1 . . . . . . . . . . . . . Recycler 9 | 1 . . 3 . 1 2 . . 2 . . . . . . . . . . . . . . Minesweeper 1 | . . . . . . . . . . . . . . 1 . . . . . . . . . Mechanic 7 | . . . 1 . 1 1 . . 1 . . . 1 . . . . . . . 1 . 1 Operator 13 | . 1 . . . . 2 . . . . . 9 . . . . . . . . . 1 . Watcher 8 | . 2 . 3 . . 1 . . . 1 . . . . . . . 1 . . . . . Swarmer 55 | . 5 6 4 7 7 . . . . 7 . . . 3 . . 5 11 . . . . . Grunt 80 | . 9 2 11 2 5 12 . . 10 6 . . . 5 1 . 4 1 1 8 . 3 . Brawler 3 | . . . 1 1 1 . . . . . . . . . . . . . . . . . . Duelist 2 | . . . 1 . . . . . 1 . . . . . . . . . . . . . . Researcher 1 | . . . . . . . . . . . . . . . . . . . . 1 . . . Sentry 36 | . . . 4 . 4 6 2 . 2 7 . 1 . . . . . 4 2 . 2 . 2 Demolisher 1 | . . . . . . . . . 1 . . . . . . . . . . . . . . Specialist 2 | . . . . . 2 . . . . . . . . . . . . . . . . . . Hunter 10 | . . . . . . 1 . . 1 . . . . . . . . 4 2 2 . . . Programmer 22 | . . . . . . . . . 4 . . . . . . . . 4 . 7 . 3 4 Behemoth 3 | . . . . . . . . . . 2 . . . . . . 1 . . . . . . Cetus Guard 1 | . . . . . . . . . . . 1 . . . . . . . . . . . . Striker 4 | . . . . . . . . . . . . . . . . . . . 1 . . . 3 Executioner 3 | . . . . . . . . . . . . . . . . . . . 1 . . . 2 Fortress 1 | . . . . . . . . . . . . . . . . . . . . . . 1 . Decomposer 3 | . . . . . . . . . . . . . . 3 . . . . . . . . . Samaritan 1 | . . . . . . . . . . . . . . 1 . . . . . . . . . Assembled 5 | . . . . . . . . . 5 . . . . . . . . . . . . . . Thug 1 | . . . . . . . . . . 1 . . . . . . . . . . . . . Savage 1 | . . . . . . . . . . 1 . . . . . . . . . . . . . Butcher 1 | . . . . . . . . . . 1 . . . . . . . . . . . . . Guerrilla 1 | . . . . . . . . . . 1 . . . . . . . . . . . . . Best Kill Streak 9 | 4 6 4 8 8 5 6 1 . 3 9 1 7 1 5 1 . 4 6 2 4 1 3 5 Combat Bots Only 9 | . 5 3 6 7 5 4 1 . 3 9 1 1 . 5 1 . 4 5 2 4 1 3 4 Max Kills in Single Turn 4 | 1 1 2 3 4 3 3 1 . 2 4 1 1 1 3 1 . 4 4 1 1 1 1 1 Gunslinging 1 | . . . . . . . . . 1 . . . . . . . . . . . . . . Exploded 4 | . . . 2 3 2 2 . . 2 2 . . . 3 1 . 4 4 . 1 . 1 . Melee . | . . . . . . . . . . . . . . . . . . . . . . . . Uniques/NPCs Destroyed 1 | . . . . . . . . . . . 1 . . . . . . . . . . . . A7 (-6/Cetus) Combat | -11 -10 -10 -9 -9 -8 -8 -8 -8 -6 -6 -6 -6 -5 -5 -5 -5 -4 -4 -3 -3 -2 -2 -2 -------- Run | Yrd Mat Min Mat Min Mat Sto Rec Scr Fac Ext Cet Arc Fac Upp Upp Zhi Pro Fac Res Tes Res Qua Frg Hostile Shots Fired 2275 | . 41 49 98 15 172 122 6 . 259 426 14 33 . 10 39 . 56 193 64 375 22 68 213 Missed 685 | . 12 16 36 . 58 27 1 . 84 153 5 4 . 2 12 . 21 56 30 103 7 20 38 Hits 1590 | . 29 33 62 15 114 95 5 . 175 273 9 29 . 8 27 . 35 137 34 272 15 48 175 Melee 38 | . . . 2 . 3 . . . 13 . . . . . . . . . . . . . 20 Projectile 1552 | . 29 33 60 15 111 95 5 . 162 273 9 29 . 8 27 . 35 137 34 272 15 48 155 AOE 9 | . . . . . . . . . 9 . . . . . . . . . . . . . . Critical Strikes 60 | . . . 2 1 5 2 . . 5 4 1 1 . . 2 . 2 4 . 12 . 3 16 Part Disruptions 6 | . . . . . . . . . . . . . . . . . . . . 4 . . 2 Damage Taken 27615 | . 334 343 730 166 1402 1485 70 . 2782 3002 240 725 . 154 516 . 582 2353 524 4518 404 1275 6010 Core 3333 | . 59 50 126 41 195 159 . . 259 434 43 44 . . 42 . 86 83 26 239 . 95 1352 Absorbed by Shields 2738 | . . . . . . . . . . 41 39 . . . . . . . 314 639 . 104 1601 Reduced by Siege Mode 425 | . . . . . . . . . . . . 6 . . . . . 79 3 136 . 33 168 Ignored by Resistances 212 | . . . . . . . . . . . . . . . 7 . 84 59 62 . . . . Regen/Repaired (Parts) 4115 | . 145 . 193 . 208 99 . . . . . 96 . 60 141 . 64 654 77 628 130 716 904 Core Remaining (%) 63 | 100 . 56 . 58 . . . 35 . . . 8 . . . . 78 92 . 79 . . . Volleys Fired 1074 | 17 70 24 90 14 75 100 8 . 124 83 25 37 12 18 19 . 10 74 47 108 17 49 53 Largest 2 | 2 2 2 2 2 2 2 2 . 2 2 2 2 2 2 2 . 2 2 2 2 2 2 2 Hottest 330 | 90 83 83 83 46 46 80 80 . 115 118 275 115 240 115 115 . 283 188 330 207 240 210 300 Shots Fired 1825 | 30 139 48 173 21 147 194 16 . 209 143 41 69 17 26 23 . 15 137 83 136 29 63 66 Gun 1231 | 30 133 24 110 14 144 188 16 . 161 102 29 69 15 17 10 . 10 . 36 65 22 24 12 Cannon 469 | . 6 24 59 . . . . . 33 14 9 . . . . . . 126 46 60 5 33 54 Launcher 93 | . . . 4 7 3 6 . . 11 26 . . . 9 13 . 5 3 . 4 . 2 . Special 32 | . . . . . . . . . 4 1 3 . 2 . . . . 8 1 7 2 4 . Kinetic 792 | . 70 24 110 14 144 187 8 . 83 74 20 35 5 9 6 . 3 . . . . . . Thermal 883 | 30 69 24 59 . . 1 8 . 111 42 18 34 10 8 4 . 7 126 82 125 27 57 41 Explosive 92 | . . . 3 7 3 6 . . 11 26 . . . 9 13 . 5 3 . 4 . 2 . Electromagnetic 26 | . . . 1 . . . . . . . . . . . . . . . . . . . 25 Robot Hit Streak 25 | 9 14 6 8 5 16 16 5 . 12 12 15 11 13 7 8 . 8 25 11 15 11 12 22 Robot Miss Streak 4 | 3 4 4 3 1 3 2 2 . 4 3 4 4 1 3 3 . . 2 2 3 1 3 1 Penetration Max 1 | . . . . . . . . . 1 . . . . . . . . . . . . . . Secondary Targets 10 | . . . . . 2 1 . . 5 1 . 1 . . . . . . . . . . . Max Gunslinging Chain 1 | . . . . . 1 1 . . 1 1 . 1 . . . . . . . . . . . Shots Hit Robots 1130 | 15 83 25 106 8 106 139 10 . 142 85 27 44 8 11 10 . 8 83 44 82 20 33 41 Core Hits 628 | 6 35 11 47 14 48 63 3 . 72 93 11 22 4 27 14 . 21 35 18 42 7 20 15 Critical Kills 19 | . . . 1 . . 1 . . . 1 . 3 1 1 . . . 1 . 5 2 1 2 Critical Parts Destroyed 13 | . . 1 1 . 3 1 . . . . . 1 . . . . . . . 5 . 1 . Critical Strikes 48 | 2 4 1 2 . 3 2 . . 7 3 . 4 1 1 . . . 1 . 10 3 2 2 Burn 15 | 2 4 . . . . . . . 7 2 . . . . . . . . . . . . . Meltdown 3 | . . . 1 . . . . . . . . . . . . . . 1 . . . . 1 Destroy 30 | . . 1 1 . 3 2 . . . 1 . 4 1 1 . . . . . 10 3 2 1 Melee Attacks 14 | . . . 1 . . 4 . . 5 1 . . . . . . . . . . . 3 . Kinetic 3 | . . . . . . . . . . . . . . . . . . . . . . 3 . Impact 10 | . . . . . . 4 . . 5 1 . . . . . . . . . . . . . Slashing . | . . . . . . . . . . . . . . . . . . . . . . . . Piercing . | . . . . . . . . . . . . . . . . . . . . . . . . Sneak Attacks . | . . . . . . . . . . . . . . . . . . . . . . . . Combat Hostiles . | . . . . . . . . . . . . . . . . . . . . . . . . Follow-up Attacks . | . . . . . . . . . . . . . . . . . . . . . . . . Damage Inflicted 36344 | 144 1218 445 1935 747 1955 2713 179 . 3710 4371 637 1300 175 1611 1412 . 1274 3617 1488 3655 590 1451 1717 Guns 15956 | 144 1155 164 1159 113 1585 2302 179 . 2350 1191 360 1300 175 292 122 . 200 . 485 1445 480 575 180 Cannons 9005 | . 53 281 616 . . . . . 606 307 277 . . . . . . 2664 1003 1408 110 386 1294 Explosions 11267 | . . . 160 632 354 401 . . 754 2867 . . . 1302 1290 . 1074 953 . 777 . 460 243 Melee 30 | . . . . . . . . . . . . . . . . . . . . . . 30 . Ramming 86 | . 10 . . 2 16 10 . . . 6 . . . 17 . . . . . 25 . . . Kinetic 9243 | . 663 164 1159 113 1585 2302 109 . 1208 805 199 610 80 128 58 . 30 . . . . 30 . Thermal 15438 | 144 545 281 616 . . . 70 . 1748 693 438 690 95 241 64 . 170 2752 1488 2853 590 961 999 Explosive 10791 | . . . 135 632 354 401 . . 711 2867 . . . 1225 1290 . 1074 865 . 777 . 460 . Electromagnetic 786 | . . . 25 . . . . . 43 . . . . . . . . . . . . . 718 Impact . | . . . . . . . . . . . . . . . . . . . . . . . . Slashing . | . . . . . . . . . . . . . . . . . . . . . . . . Piercing . | . . . . . . . . . . . . . . . . . . . . . . . . Highest Corruption 41 | . . . . . . . . . 12 5 41 41 . . 2 2 2 2 5 29 . 5 20 Average Corruption 9 | . . . . . . . . . 7 5 33 28 . . 1 2 2 1 5 12 . 4 11 Corruption Purged 43 | . . . . . . . . . 7 . . 27 . . . . . . . . . . 9 Corruption Blocked . | . . . . . . . . . . . . . . . . . . . . . . . . Effects 335 | . . . . . . . . . 55 50 36 31 . . 7 2 15 12 12 57 . 15 43 Message Errors 71 | . . . . . . . . . 13 5 9 5 . . 3 1 . 5 4 17 . 1 8 Matter Fused 62 | . . . . . . . . . 9 17 8 3 . . 1 . 6 . 1 5 . 4 8 Heat Flow Errors 44 | . . . . . . . . . 7 4 3 5 . . 2 . 1 3 1 8 . 2 8 Energy Discharges 43 | . . . . . . . . . 11 8 5 5 . . . . 2 . 1 5 . 2 4 Parts Rejected 5 | . . . . . . . . . 1 1 . . . . . . . . . 1 . 1 1 Parts Fused 3 | . . . . . . . . . . . . . . . . . 1 . 1 . . . 1 Data Loss (minor) 50 | . . . . . . . . . 4 6 7 6 . . . 1 2 4 1 8 . 4 7 Data Loss (major) 11 | . . . . . . . . . 1 3 1 . . . . . 2 . 1 2 . . 1 Misfires 14 | . . . . . . . . . 2 3 1 1 . . . . 1 . 1 3 . 1 1 Alerts 13 | . . . . . . . . . 2 2 . 2 . . 1 . . . 1 4 . . 1 Misdirections 4 | . . . . . . . . . 1 . . . . . . . . . . 1 . . 2 Weapon Failures 15 | . . . . . . . . . 4 1 2 4 . . . . . . . 3 . . 1 Overload Shots 16 | . . . . . . . . . . . 3 . 5 . . . 6 . 1 . 1 . . Overflow Damage 565 | . . . 4 7 . . . . 1 195 . . . 79 26 . 8 80 . 130 . . 35 Projectiles 134 | . . . . . . . . . 1 . . . . . . . . 49 . 49 . . 35 Explosions 420 | . . . 4 7 . . . . . 195 . . . 68 26 . 8 31 . 81 . . . Melee 11 | . . . . . . . . . . . . . . 11 . . . . . . . . . Knockbacks . | . . . . . . . . . . . . . . . . . . . . . . . . Impact . | . . . . . . . . . . . . . . . . . . . . . . . . Kinetic . | . . . . . . . . . . . . . . . . . . . . . . . . Secondary . | . . . . . . . . . . . . . . . . . . . . . . . . Self-Inflicted Damage 281 | . . . . 17 . 3 . . . 99 . . . . 52 . . 20 . . . . 90 Shots 8 | . . . . 1 . 1 . . . 3 . . . . 1 . . 1 . . . . 1 Rammed 2 | . 1 . . . . . . . . . . . . 1 . . . . . . . . . Targets Rammed 17 | . 2 . 1 2 4 2 . . . 2 . . . 1 . . . . . 3 . . . Kicked 14 | . . . 1 2 4 2 . . . 2 . . . . . . . . . 3 . . . Crushed 1 | . 1 . . . . . . . . . . . . . . . . . . . . . . Highest Temperature 937 | 310 214 278 46 . 22 272 . . 247 297 295 229 292 . 243 . 240 180 144 260 14 356 937 Average Temperature 71 | 131 56 109 16 . 10 23 . . 59 104 82 71 108 . 117 . 81 87 39 77 10 54 342 Received Heat Transfer 6374 | . 156 90 261 42 261 642 9 . 597 780 18 144 . 75 166 . 128 72 20 536 54 469 1854 Effects 6 | . . . . . . . . . . . . . 1 . . . . . . 1 . . 4 Energy Bleed 3 | . . . . . . . . . . . . . . . . . . . . 1 . . 2 Interference 1 | . . . . . . . . . . . . . 1 . . . . . . . . . . Damage (minor) 2 | . . . . . . . . . . . . . . . . . . . . . . . 2 Siege Activations 17 | . . . . . . . . . . . . 1 . 2 . . . 5 2 3 . 1 3 Total Turns 457 | . . . . . . . . . . . . 135 . 44 . . . 91 26 84 . 8 69 Longest Duration 135 | . . . . . . . . . . . . 135 . 42 . . . 43 23 43 . 8 31 Martial Activations . | . . . . . . . . . . . . . . . . . . . . . . . . Shielding Activations . | . . . . . . . . . . . . . . . . . . . . . . . . Robots Disrupted . | . . . . . . . . . . . . . . . . . . . . . . . . Combat Hostiles . | . . . . . . . . . . . . . . . . . . . . . . . . Robots Corrupted 6 | . . . . . . . . . . . . . . 1 . . . . . . . . 5 Combat Hostiles 5 | . . . . . . . . . . . . . . . . . . . . . . . 5 Parts Fried 12 | . . . . . . . . . . . . . . 2 . . . . . . . . 10 Impact Corruptions 3 | . . . . . . . . . . . . . . 3 . . . . . . . . . Robots Melted 8 | . . . 1 . . . . . 2 . . . . . . . . 2 2 . . . 1 Combat Hostiles 8 | . . . 1 . . . . . 2 . . . . . . . . 2 2 . . . 1 Parts Melted 49 | 1 3 2 2 . . . . . 11 3 . . . . . . . 11 4 7 . . 5 Heat Transferred 22144 | 544 1850 592 1295 . . . 148 . 3935 1184 476 888 148 265 74 . 150 3471 1646 2923 703 1036 816 Parts Sabotaged . | . . . . . . . . . . . . . . . . . . . . . . . . Parts Stolen . | . . . . . . . . . . . . . . . . . . . . . . . . Parts Stripped 18 | . . . . . . . . . . . . . . . . . . . . . . 18 . Power Chain Reactions 1 | . . . . . . . . . . . . . . . . . . . . . . . 1 Alert | -11 -10 -10 -9 -9 -8 -8 -8 -8 -6 -6 -6 -6 -5 -5 -5 -5 -4 -4 -3 -3 -2 -2 -2 ------- Run | Yrd Mat Min Mat Min Mat Sto Rec Scr Fac Ext Cet Arc Fac Upp Upp Zhi Pro Fac Res Tes Res Qua Frg Maximum Alert Level 2 | . 1 . 1 1 1 1 . . 1 2 1 1 . . . . . 2 1 1 . 1 1 Low Security (%) 71 | 100 93 100 42 42 97 67 100 . 77 58 . 42 100 . . . . 27 74 92 100 95 82 Level 1 24 | . 6 . 57 57 2 32 . . 22 33 100 57 . . . . . 38 25 7 . 4 17 Level 2 3 | . . . . . . . . . . 7 . . . . . . . 33 . . . . . Level 3 . | . . . . . . . . . . . . . . . . . . . . . . . . Level 4 . | . . . . . . . . . . . . . . . . . . . . . . . . Level 5 . | . . . . . . . . . . . . . . . . . . . . . . . . High Security . | . . . . . . . . . . . . . . . . . . . . . . . . Max Security . | . . . . . . . . . . . . . . . . . . . . . . . . Peak Influence 680 | 20 219 117 302 346 210 333 62 . 248 592 365 312 44 . . . . 680 304 232 119 212 362 Initial 331 | . . 77 . 81 40 70 18 . . 109 331 92 44 . . . . 121 304 50 119 18 60 Average 138 | 2 121 28 185 220 98 153 12 . 90 186 288 221 6 . . . . 355 142 46 44 92 114 Influence Increases 11223 | 25 557 195 815 295 616 811 231 . 859 1738 290 296 63 423 279 . 354 1032 236 663 127 418 900 Destroy 0b10 Robot/C 5560 | . 280 160 420 200 380 360 40 . 380 900 160 80 . 240 180 . 260 480 140 360 40 140 360 Destroy 0b10 Robot/NC 585 | 25 65 5 75 5 45 70 . . 55 90 5 45 10 5 . . . 20 5 20 15 20 5 Destroy Leader 1086 | . 66 30 116 30 96 112 . . 104 122 . . 2 10 30 . 30 114 52 64 22 16 70 Allied During Kill 900 | . . . . . . . . . . 261 91 87 8 168 69 . 64 . . . . . 152 Successful Hack 241 | . 7 . 18 . 22 5 10 . 27 18 . . 14 . . . . 20 . 30 38 8 24 Select Force Hacks 240 | . 60 . . . . . 180 . . . . . . . . . . . . . . . . Disable Machine 840 | . . . 135 15 . 45 . . 150 60 15 75 15 . . . . 60 15 60 . 90 105 Anti-Garrison Action 150 | . . . . . . 150 . . . . . . . . . . . . . . . . . Destroy Structure 1111 | . 4 . 51 45 28 69 1 . 113 167 19 9 14 . . . . 248 24 114 12 144 49 Lose Combat Pursuer 510 | . 75 . . . 45 . . . 30 120 . . . . . . . 90 . 15 . . 135 Influence Decreases 10942 | 25 358 394 605 399 553 933 278 . 634 1371 651 401 189 327 355 20 160 646 726 541 306 344 726 Entered New Map 1626 | . . 122 . 129 66 99 29 . . 116 261 139 82 . 19 20 . 73 276 40 93 15 47 Time Decay 7265 | 25 358 272 455 270 457 434 249 . 351 582 310 262 107 327 286 . 140 533 440 452 207 329 419 Lost Part 645 | . . . . . 30 60 . . 160 180 . . . . 10 . . 40 10 49 6 . 100 Lost Ally 580 | . . . . . . 40 . . . 240 80 . . . 40 . 20 . . . . . 160 Purge Threat 826 | . . . 150 . . 300 . . 123 253 . . . . . . . . . . . . . Squads Dispatched 66 | . 5 . 2 . 2 6 . . 8 5 . . 3 . . . . 9 6 5 2 2 11 Investigation 19 | . 4 . 1 . . 1 . . 1 1 . . 1 . . . . 2 2 . . . 6 Extermination 16 | . . . . . . . . . 4 . . . 1 . . . . 3 . 3 1 2 2 Reinforcement 25 | . 1 . 1 . 2 3 . . 2 4 . . 1 . . . . 1 4 2 1 . 3 Assault 2 | . . . . . . 2 . . . . . . . . . . . . . . . . . Garrison 4 | . . . . . . . . . 1 . . . . . . . . 3 . . . . . Intercept . | . . . . . . . . . . . . . . . . . . . . . . . . Searches Triggered . | . . . . . . . . . . . . . . . . . . . . . . . . Construction Impeded 4 | . . . . . . . . . . 4 . . . . . . . . . . . . . Haulers Reinforced 2 | . . . . . . . . . . . . . . . . . . . 2 . . . . Active Scanning Responses . | . . . . . . . . . . . . . . . . . . . . . . . . Cargo Convoy Interrupts . | . . . . . . . . . . . . . . . . . . . . . . . . Stealth | -11 -10 -10 -9 -9 -8 -8 -8 -8 -6 -6 -6 -6 -5 -5 -5 -5 -4 -4 -3 -3 -2 -2 -2 --------- Run | Yrd Mat Min Mat Min Mat Sto Rec Scr Fac Ext Cet Arc Fac Upp Upp Zhi Pro Fac Res Tes Res Qua Frg Distress Signals 24 | . 1 . 1 . 3 3 . . 2 1 2 . . . . . . 2 5 . . . 4 Communications Jammed . | . . . . . . . . . . . . . . . . . . . . . . . . Distress Signals . | . . . . . . . . . . . . . . . . . . . . . . . . Times Spotted 396 | . 21 8 26 8 27 35 3 . 40 44 10 12 1 9 10 . 12 34 22 26 5 11 32 Peak Tracking Total 14 | . 5 3 4 4 7 4 1 . 5 7 5 3 1 4 4 . 5 7 3 4 3 4 14 Tactical Retreats 21 | . 3 . . . 1 . . . 3 5 . . . . . . . 5 . 1 . . 3 ECM-based Alert Blocks 2 | . . . . . . . . . . . . . . . . . . 2 . . . . . Traps | -11 -10 -10 -9 -9 -8 -8 -8 -8 -6 -6 -6 -6 -5 -5 -5 -5 -4 -4 -3 -3 -2 -2 -2 ------- Run | Yrd Mat Min Mat Min Mat Sto Rec Scr Fac Ext Cet Arc Fac Upp Upp Zhi Pro Fac Res Tes Res Qua Frg Traps Triggered 20 | . 2 . 4 . . . . . 4 4 . . . . . . . 2 . . . 3 1 Indirectly 1 | . . . . . . . . . 1 . . . . . . . . . . . . . . Trap Hack Attempts . | . . . . . . . . . . . . . . . . . . . . . . . . Triggered . | . . . . . . . . . . . . . . . . . . . . . . . . Disarmed . | . . . . . . . . . . . . . . . . . . . . . . . . Reprogrammed . | . . . . . . . . . . . . . . . . . . . . . . . . Reused . | . . . . . . . . . . . . . . . . . . . . . . . . Traps Extracted . | . . . . . . . . . . . . . . . . . . . . . . . . Installed 1 | . . . . . . . . . . 1 . . . . . . . . . . . . . Triggered . | . . . . . . . . . . . . . . . . . . . . . . . . Most Traps Carried 1 | . . . . . . . . 1 1 1 . . . . . . . . . . . . . Machines | -11 -10 -10 -9 -9 -8 -8 -8 -8 -6 -6 -6 -6 -5 -5 -5 -5 -4 -4 -3 -3 -2 -2 -2 ---------- Run | Yrd Mat Min Mat Min Mat Sto Rec Scr Fac Ext Cet Arc Fac Upp Upp Zhi Pro Fac Res Tes Res Qua Frg Machines Disabled 67 | . . . 9 1 . 4 . . 10 7 1 5 1 4 1 . . 4 1 5 . 6 8 Max in Single Turn 5 | . . . 5 1 . 1 . . 4 1 1 1 1 2 1 . . 2 1 1 . 1 3 Garrison Access 5 | . . . . . . 1 . . . . . . . . . . . . 2 1 . 1 . Machines Repaired . | . . . . . . . . . . . . . . . . . . . . . . . . Machines Dismantled . | . . . . . . . . . . . . . . . . . . . . . . . . Machines Sabotaged . | . . . . . . . . . . . . . . . . . . . . . . . . Overloaded Fab Kills . | . . . . . . . . . . . . . . . . . . . . . . . . Hacking | -11 -10 -10 -9 -9 -8 -8 -8 -8 -6 -6 -6 -6 -5 -5 -5 -5 -4 -4 -3 -3 -2 -2 -2 --------- Run | Yrd Mat Min Mat Min Mat Sto Rec Scr Fac Ext Cet Arc Fac Upp Upp Zhi Pro Fac Res Tes Res Qua Frg Machines Accessed 103 | . 5 . 6 . 5 8 12 3 9 12 1 . 3 . . 4 . 2 7 11 3 5 7 Terminals 60 | . 2 . 4 . 4 6 6 . 5 12 1 . 1 . . . . 2 3 7 3 3 1 Fabricators 1 | . . . . . . . . . 1 . . . . . . . . . . . . . . Repair Stations 6 | . 1 . 1 . 1 1 . . 1 . . . . . . . . . . 1 . . . Recycling Units 13 | . 2 . . . . . 6 . . . . . 1 . . . . . 1 . . . 3 Scanalyzers 10 | . . . 1 . . . . . 1 . . . 1 . . . . . 1 2 . 1 3 Garrison Access 6 | . . . . . . 1 . . 1 . . . . . . . . . 2 1 . 1 . Total Hacks 288 | . 17 . 28 . 18 18 29 6 20 25 1 . 8 . . 17 . 9 28 35 10 8 11 Successful 183 | . 14 . 18 . 13 9 14 6 9 11 . . 6 . . 17 . 2 23 21 5 6 9 Failed 102 | . 3 . 10 . 5 9 15 . 11 14 1 . 2 . . . . 7 5 13 5 1 1 Catastrophic 15 | . 1 . 2 . . 2 . . 3 3 . . . . . . . 2 1 1 . . . Database Lockouts 3 | . . . . . . . . . . . . . . . . . . . . 1 . 1 1 Manual 115 | . 7 . 14 . 10 7 27 . 4 7 1 . 5 . . . . 7 6 7 8 2 3 Terminals 167 | . 5 . 15 . 11 11 21 . 13 25 1 . 4 . . . . 9 10 25 10 5 2 Fabricators 1 | . . . . . . . . . 1 . . . . . . . . . . . . . . Repair Stations 30 | . 10 . 6 . 7 4 . . 1 . . . . . . . . . . 2 . . . Recycling Units 15 | . 2 . . . . . 8 . . . . . 1 . . . . . 1 . . . 3 Scanalyzers 42 | . . . 7 . . . . . 4 . . . 3 . . . . . 14 6 . 2 6 Garrison Access 10 | . . . . . . 3 . . 1 . . . . . . . . . 3 2 . 1 . Terminal Hacks 72 | . . . 2 . 1 4 2 6 3 10 . . 1 . . 17 . 1 4 13 3 3 2 Record 10 | . . . . . . . . 5 . . . . . . . 5 . . . . . . . Part Schematic 6 | . . . . . . . . . . . . . . . . 4 . . . 2 . . . Robot Analysis 7 | . . . . . . . . . . . . . . . . 4 . . 1 1 . . 1 Prototype ID Bank 8 | . . . . . . . 1 . 1 1 . . . . . 4 . . 1 . . . . Open Door 9 | . . . . . . 2 . . . 6 . . . . . . . . . 1 . . . Level Access Points 2 | . . . . . . . . . . . . . . . . . . . . 1 . 1 . Branch Access Points 2 | . . . . . . . . . . . . . . . . . . . 1 . 1 . . Machine Index 1 | . . . . . . . . . . . . . . . . . . . . . 1 . . Terminal Index 3 | . . . . . 1 . . . . . . . 1 . . . . . . 1 . . . Fabricator Index 1 | . . . . . . . . . 1 . . . . . . . . . . . . . . Garrison Index 1 | . . . . . . . . . . . . . . . . . . . . 1 . . . Alert Level 2 | . . . 1 . . . . . . . . . . . . . . . . 1 . . . Unreport Threat 7 | . . . 1 . . 2 . . 1 3 . . . . . . . . . . . . . Locate Traps 1 | . . . . . . . . . . . . . . . . . . . . 1 . . . Registered Components 4 | . . . . . . . 1 . . . . . . . . . . . 1 1 1 . . Registered Prototypes 3 | . . . . . . . . . . . . . . . . . . 1 . 1 . 1 . Zone Layout 4 | . . . . . . . . . . . . . . . . . . . . 2 . 1 1 Proto ID Catalog 1 | . . . . . . . . 1 . . . . . . . . . . . . . . . Fabricator Hacks . | . . . . . . . . . . . . . . . . . . . . . . . . Repair Station Hacks 23 | . 8 . 4 . 6 3 . . . . . . . . . . . . . 2 . . . Scan Component 12 | . 4 . 2 . 3 2 . . . . . . . . . . . . . 1 . . . Repair 11 | . 4 . 2 . 3 1 . . . . . . . . . . . . . 1 . . . Recycling Unit Hacks . | . . . . . . . . . . . . . . . . . . . . . . . . Scanalyzer 37 | . . . 7 . . . . . 4 . . . 3 . . . . . 14 4 . 1 4 Insert Component 6 | . . . 2 . . . . . . . . . . . . . . . 3 1 . . . Analyze 5 | . . . 2 . . . . . . . . . . . . . . . 2 1 . . . Retrieve Study 26 | . . . 3 . . . . . 4 . . . 3 . . . . . 9 2 . 1 4 Garrison Access Hacks 4 | . . . . . . . . . . . . . . . . . . . 2 1 . 1 . Seal Access 4 | . . . . . . . . . . . . . . . . . . . 2 1 . 1 . Unauthorized Hacks 47 | . 6 . 5 . 6 2 12 . 2 1 . . 2 . . . . 1 3 1 2 1 3 Terminals 33 | . 4 . 5 . 6 2 6 . 1 1 . . 1 . . . . 1 2 1 2 1 . Botnet 18 | . 1 . 3 . 1 2 1 . 1 1 . . 1 . . . . 1 2 1 2 1 . Operators 2 | . 1 . . . 1 . . . . . . . . . . . . . . . . . . Skim 13 | . 2 . 2 . 4 . 5 . . . . . . . . . . . . . . . . Fabricators 1 | . . . . . . . . . 1 . . . . . . . . . . . . . . Haulers 1 | . . . . . . . . . 1 . . . . . . . . . . . . . . Repair Stations . | . . . . . . . . . . . . . . . . . . . . . . . . Recycling Units 13 | . 2 . . . . . 6 . . . . . 1 . . . . . 1 . . . 3 Tunnel 8 | . 2 . . . . . 6 . . . . . . . . . . . . . . . . Fedlink 3 | . . . . . . . . . . . . . 1 . . . . . 1 . . . 1 Scrapoids 2 | . . . . . . . . . . . . . . . . . . . . . . . 2 Scanalyzers . | . . . . . . . . . . . . . . . . . . . . . . . . Garrison Access . | . . . . . . . . . . . . . . . . . . . . . . . . Data Cores Recovered 1 | . . . . . . . . . . . . . . . . . . . . . . 1 . Used 1 | . . . . . . . . . . . . . . . . . . . . . . 1 . Hacking Detections 72 | . 3 . 6 . 5 6 7 . 9 8 . . 2 . . . . 2 4 10 3 3 4 Full Trace Events 3 | . . . 1 . . 1 . . . 1 . . . . . . . . . . . . . Feedback Events . | . . . . . . . . . . . . . . . . . . . . . . . . Feedback Blocked . | . . . . . . . . . . . . . . . . . . . . . . . . Robot Schematics Acquired 1 | . . . . . . . . . . . . . . . . . . . . 1 . . . Robots Built . | . . . . . . . . . . . . . . . . . . . . . . . . Authchips . | . . . . . . . . . . . . . . . . . . . . . . . . Time . | . . . . . . . . . . . . . . . . . . . . . . . . Total Robot Build Rating . | . . . . . . . . . . . . . . . . . . . . . . . . Part Schematics Acquired 15 | . . . 2 . . . . . . . . . . . . 4 . . 1 8 . . . Parts Built . | . . . . . . . . . . . . . . . . . . . . . . . . Authchips . | . . . . . . . . . . . . . . . . . . . . . . . . Time . | . . . . . . . . . . . . . . . . . . . . . . . . Total Part Build Rating . | . . . . . . . . . . . . . . . . . . . . . . . . Part Studies Acquired 26 | . . . 3 . . . . . 4 . . . 3 . . . . . 9 2 . 1 4 Parts Repaired 10 | . 4 . 2 . 3 1 . . . . . . . . . . . . . . . . . Time 363 | . 104 . 52 . 115 38 . . . . . . . . . . . . . 54 . . . Parts Recycled . | . . . . . . . . . . . . . . . . . . . . . . . . Recycled Matter . | . . . . . . . . . . . . . . . . . . . . . . . . Retrieved Matter . | . . . . . . . . . . . . . . . . . . . . . . . . Retrieved Components . | . . . . . . . . . . . . . . . . . . . . . . . . Parts Scanalyzed 4 | . . . 2 . . . . . . . . . . . . . . . 1 1 . . . Part Schematics Acquired 4 | . . . 2 . . . . . . . . . . . . . . . 1 1 . . . Parts Damaged 1 | . . . . . . . . . . . . . . . . . . . . 1 . . . Bothacking | -11 -10 -10 -9 -9 -8 -8 -8 -8 -6 -6 -6 -6 -5 -5 -5 -5 -4 -4 -3 -3 -2 -2 -2 ------------ Run | Yrd Mat Min Mat Min Mat Sto Rec Scr Fac Ext Cet Arc Fac Upp Upp Zhi Pro Fac Res Tes Res Qua Frg Used RIF Installer . | . . . . . . . . . . . . . . . . . . . . . . . . Robots Hacked 18 | . . . . . . . . . 3 . 1 . 1 . . . . 5 1 3 1 3 . Non-combat 1 | . . . . . . . . . . . . . . . . . . 1 . . . . . Combat . | . . . . . . . . . . . . . . . . . . . . . . . . Robot Hacks Applied 1 | . . . . . . . . . . . . . . . . . . 1 . . . . . find_chute 1 | . . . . . . . . . . . . . . . . . . 1 . . . . . Manual 17 | . . . . . . . . . 3 . 1 . 1 . . . . 4 1 3 1 3 . Relay Couplers Released 3 | . . . . . . 3 . . . . . . . . . . . . . . . . . Machine Destruction 3 | . . . . . . 3 . . . . . . . . . . . . . . . . . Fabnet Peak Effective % . | . . . . . . . . . . . . . . . . . . . . . . . . Robots Rewired 13 | . . . . . . . 6 . . 7 . . . . . . . . . . . . . Allies Hacked 2 | . . . . . . . . . . . . . . . . . . . . . . . 2 Hacks Repelled . | . . . . . . . . . . . . . . . . . . . . . . . . Allies | -11 -10 -10 -9 -9 -8 -8 -8 -8 -6 -6 -6 -6 -5 -5 -5 -5 -4 -4 -3 -3 -2 -2 -2 -------- Run | Yrd Mat Min Mat Min Mat Sto Rec Scr Fac Ext Cet Arc Fac Upp Upp Zhi Pro Fac Res Tes Res Qua Frg Total Allies 39 | . . . . . . . 6 . . 18 5 . . . . . . . . . . . 10 Largest Group 10 | . . . . . . . 6 6 1 9 6 3 3 3 3 1 1 . . . . . 10 Highest-Rated Group 640 | . . . . . . . 97 95 16 271 626 281 276 276 276 96 96 . . . . . 640 Highest-Rated Ally 159 | . . . . . . . 21 21 16 159 159 96 96 96 96 96 96 . . . . . 64 Initial UFD Resources 56 | . . . . . . . . . 22 22 22 22 25 35 35 35 38 38 42 52 56 56 56 Total Orders 5 | . . . . . . 2 . . . . . . . 3 . . . . . . . . . STAY 1 | . . . . . . . . . . . . . . 1 . . . . . . . . . FOLLOW 2 | . . . . . . . . . . . . . . 2 . . . . . . . . . EXPLORE 2 | . . . . . . 2 . . . . . . . . . . . . . . . . . Ally Attacks 377 | . . . . . . . 6 . 7 149 57 16 . 15 19 . 14 . . . . . 94 Total Damage 10112 | . . . . . . . 102 . 75 3050 1742 694 . 508 710 . 565 . . . . . 2666 Kills 60 | . . . . . . . . . . 25 8 3 . 4 9 . 3 . . . . . 8 Allies Corrupted 1 | . . . . . . . . . . . . . . . . . . . . . . . 1 Allies Melted 1 | . . . . . . . . . . 1 . . . . . . . . . . . . . Intel | -11 -10 -10 -9 -9 -8 -8 -8 -8 -6 -6 -6 -6 -5 -5 -5 -5 -4 -4 -3 -3 -2 -2 -2 ------- Run | Yrd Mat Min Mat Min Mat Sto Rec Scr Fac Ext Cet Arc Fac Upp Upp Zhi Pro Fac Res Tes Res Qua Frg Active Infowar (turns) 21776 | 19 1240 889 1370 588 1346 1071 1072 1330 2425 1072 659 . 646 1258 510 236 533 1600 377 1222 448 893 972 Sensors 10759 | . . . . 4 . . . . 2407 218 . . 646 1092 506 236 533 1451 364 1118 418 799 967 IFF 1011 | . . . . . . . . . . 352 659 . . . . . . . . . . . . Terrain 883 | . . . . . . . . . . . . . . . . . . 4 151 728 . . . Structural 180 | . . . . . . . . . . . . . . . . . . . . . 30 145 5 Seismic 11229 | 19 1240 889 1370 584 1346 340 1061 1330 2425 625 . . . . . . . . . . . . . Machine Analysis 7007 | . . . . . 650 1071 1072 1330 2026 . . . . . . . . . . . 175 683 . Cloaking 366 | . . . . . . . . . 125 241 . . . . . . . . . . . . . Jamming 1575 | . . . . . . . . . . . . . 293 1258 24 . . . . . . . . ECM 226 | . . . . . . . . . 76 . . . . . . . . 150 . . . . . Robot Analysis Total 7 | . . . . . . . . . . . . . . . . 4 . . 1 1 . . 1 Derelict Logs Recovered 8 | . . 1 . 2 . . . . . . . . . 1 2 . 2 . . . . . . Drone Launches 4 | . . . . . . 4 . . . . . . . . . . . . . . . . . Drone Recoveries . | . . . . . . . . . . . . . . . . . . . . . . . . Exploration | -11 -10 -10 -9 -9 -8 -8 -8 -8 -6 -6 -6 -6 -5 -5 -5 -5 -4 -4 -3 -3 -2 -2 -2 ------------- Run | Yrd Mat Min Mat Min Mat Sto Rec Scr Fac Ext Cet Arc Fac Upp Upp Zhi Pro Fac Res Tes Res Qua Frg Turns Passed 25644 | 153 1266 927 1388 589 1346 1071 1072 1330 2425 1895 693 578 648 1258 636 287 905 1908 1086 1515 457 1008 1203 Spaces Moved 13507 | 52 529 531 692 436 726 480 594 1148 1325 904 274 219 359 699 355 167 519 777 517 617 313 616 658 Core 121 | 4 . . . . . . . . . . . . . . . . . . . . . . 117 Treads 6193 | 48 529 531 177 . . . . . . 14 250 219 359 699 355 167 519 777 517 437 . 121 474 Legs 6880 | . . . 515 436 726 480 594 1148 1136 833 24 . . . . . . . . 180 313 495 . Wheels 246 | . . . . . . . . . 189 57 . . . . . . . . . . . . . Hover . | . . . . . . . . . . . . . . . . . . . . . . . . Flight 67 | . . . . . . . . . . . . . . . . . . . . . . . 67 Fastest Speed 45 | 50 160 160 123 123 111 105 108 112 101 110 120 160 160 160 160 160 160 160 160 108 111 105 45 Average Speed 137 | 151 160 160 135 123 122 108 108 114 125 128 159 160 160 160 160 160 160 160 160 160 111 118 128 Slowest Speed 465 | 160 160 160 270 123 126 115 112 122 330 240 240 160 160 160 160 160 160 160 160 225 114 237 465 Overloaded Moves . | . . . . . . . . . . . . . . . . . . . . . . . . Propulsion Burnouts . | . . . . . . . . . . . . . . . . . . . . . . . . Robots Hopped . | . . . . . . . . . . . . . . . . . . . . . . . . Potential Cave-ins 4 | . . . . . . . . . . . . . 2 . . . . 2 . . . . . Cave-ins Triggered . | . . . . . . . . . . . . . . . . . . . . . . . . Teleports 1 | . . . . . . . . . . . . . . . . 1 . . . . . . . Exploration Rate (%) 57 | 4 65 96 52 89 40 89 99 87 31 90 69 89 10 88 54 60 71 16 15 69 11 62 31 Regions Visited 23 Branch Regions 15 Pre-discovered Areas 12 | . 2 . . . . . 6 . . . . . . . . 3 . . 1 . . . . Known Exits Taken 16 | . . . . . 1 . . 1 1 1 1 1 1 1 1 1 1 1 1 1 1 1 . Unknown Exits Taken 7 | 1 1 1 1 1 . 1 1 . . . . . . . . . . . . . . . . Scrap Searched 20 | . . 1 . 2 . . . 9 . . . . . 6 1 . 1 . . . . . . Spaces Dug 438 | . . . 32 34 10 66 . . 123 44 . . 2 10 . . 2 75 7 13 2 8 10 Terrain Destroyed 1183 | . . . 47 55 24 79 . . 168 222 7 10 5 75 121 . 66 150 14 66 3 59 12 Melee 4 | . . . . . . . . . 4 . . . . . . . . . . . . . . Projectile 161 | . . . . . . . . . 13 4 7 10 5 6 3 . 4 42 14 23 3 15 12 AOE 1018 | . . . 47 55 24 79 . . 151 218 . . . 69 118 . 62 108 . 43 . 44 . Terrain Rammed . | . . . . . . . . . . . . . . . . . . . . . . . . Walls Destroyed . | . . . . . . . . . . . . . . . . . . . . . . . . Machines Disabled . | . . . . . . . . . . . . . . . . . . . . . . . . Actions | -11 -10 -10 -9 -9 -8 -8 -8 -8 -6 -6 -6 -6 -5 -5 -5 -5 -4 -4 -3 -3 -2 -2 -2 --------- Run | Yrd Mat Min Mat Min Mat Sto Rec Scr Fac Ext Cet Arc Fac Upp Upp Zhi Pro Fac Res Tes Res Qua Frg Total 18829 | 93 824 564 996 464 1041 850 1012 1172 1877 1500 503 374 418 808 392 189 575 1304 696 1008 393 832 944 Wait 2814 | 14 194 2 103 2 163 179 354 5 330 291 110 93 24 75 6 1 40 376 57 168 27 19 181 Move 13484 | 51 528 530 691 435 725 479 593 1147 1324 903 273 218 358 698 354 166 518 776 516 616 312 615 658 Hop . | . . . . . . . . . . . . . . . . . . . . . . . . Pick Up 254 | 4 17 1 28 1 18 16 1 8 16 33 16 5 5 2 . 4 . 20 15 16 10 18 . Fast Attach 205 | 7 3 . 15 1 3 13 2 . 17 16 22 7 3 2 . 7 . 11 10 18 3 28 17 Attach 77 | . . . 3 . 5 3 . . 12 13 3 . 2 . 1 2 . 6 3 12 4 6 2 Detach 29 | . . . . . . . 1 . 2 2 1 . . . . 1 . . 2 11 1 3 5 Swap 339 | . 4 5 23 7 22 27 2 3 33 41 8 5 7 8 12 . 7 22 22 28 10 34 9 Drop 399 | . 6 2 41 2 26 26 4 9 14 43 45 9 7 4 . 8 . 19 24 28 9 57 16 Fire 1074 | 17 70 24 90 14 75 100 8 . 124 83 25 37 12 18 19 . 10 74 47 108 17 49 53 Melee 14 | . . . 1 . . 4 . . 5 1 . . . . . . . . . . . 3 . Ram . | . . . . . . . . . . . . . . . . . . . . . . . . Kick 14 | . . . 1 2 4 2 . . . 2 . . . . . . . . . 3 . . . Crush 3 | . 2 . . . . . . . . . . . . 1 . . . . . . . . . Escape Stasis 13 | . . . . . . . . . . 13 . . . . . . . . . . . . . Rewire 107 | . . . . . . 1 47 . . 58 . . . . . . . . . . . . 1 Trap 1 | . . . . . . . . . . 1 . . . . . . . . . . . . . Miscellaneous 2 | . . . . . . . . . . . . . . . . . . . . . . . 2 Route ------- -11/Scrapyard -10/Materials (discovered 3 exits: *Mat / [*Min x2]) -10/Mines (discovered 4 exits: *Mat x2 / [*Exi] / [*Sub]) -9/Materials (discovered 3 exits: *Mat x2 / [*Min]) -9/Mines -8/Materials (discovered 2 exits: [*Fac] / *Sto) -8/Storage (discovered 2 exits: [*Fac] / *Rec) -8/Recycling (discovered 2 exits: *Fac / *Scr) -8/Scraptown (discovered 2 exits: *Fac x2) -6/Factory (discovered 7 exits: *Fac x4 / *Low x2 / *Ext) -6/Extension (discovered 2 exits: *Fac / *Cet) -6/Cetus (discovered 2 exits: *Fac / *Arc) -6/Archives (discovered 3 exits: *Fac / [*Hub x2]) -5/Factory (discovered 2 exits: *Fac / *Upp) -5/Upper Caves -5/Upper Caves (discovered 2 exits: *Fac / *Zhi) -5/Zhirov -4/Proximity Caves -4/Factory (discovered 2 exits: *Res / Arm) -3/Research (discovered 3 exits: Res / *Tes x2) -3/Testing -2/Research (discovered 3 exits: *Acc / *Qua x2) -2/Quarantine (discovered 3 exits: Acc / *Sec / *Frg) -2/Protoforge History --------- Turn | Location | Event 5 | -11/Scrapyard | Discovered new exit (range 14) 154 | -11/Scrapyard | Entered Materials 241 | -10/Materials | Discovered new exit (range 15) 305 | -10/Materials | Build established: Mutant 400 | -10/Materials | Discovered new exit (range 15) 909 | -10/Materials | Discovered new exit (range 6) 1001 | -10/Materials | Repaired Lgt. Treads 1028 | -10/Materials | Repaired Seismic Detector 1056 | -10/Materials | Repaired Med. Laser 1083 | -10/Materials | Repaired Lgt. Assault Rifle 1420 | -10/Materials | Entered Mines 1470 | -10/Mines | Discovered new exit (range 7) 1540 | -10/Mines | Discovered new exit (range 6) 1700 | -10/Mines | Learned Materials stockpile data 2021 | -10/Mines | Received a Rocket Launcher from a helpful Derelict 2068 | -10/Mines | Discovered new exit (range 6) 2254 | -10/Mines | Deemed a non-threat by the Exiles lab entrance 2254 | -10/Mines | Discovered new exit (range 5) 2347 | -10/Mines | Entered Materials 2347 | -9/Materials | Evolved 2 slots: Propulsion x1, Utility x1 2401 | -9/Materials | Repaired Lgt. Treads 2429 | -9/Materials | Repaired Lgt. Treads 2879 | -9/Materials | Discovered new exit (range 14) 3107 | -9/Materials | Discovered new exit (range 8) 3465 | -9/Materials | Discovered new exit (range 4) 3735 | -9/Materials | Entered Mines 3737 | -9/Mines | Discovered new exit (range 13) 3782 | -9/Mines | Destroyed 7 combat bots 3800 | -9/Mines | Met a Derelict bent on vengeance 3954 | -9/Mines | Found a damaged Exp. Sensor Array with a note attached 3957 | -9/Mines | Found Prototype Device 3957 | -9/Mines | Identified Exp. Sensor Array 4324 | -9/Mines | Entered Materials 4324 | -8/Materials | Evolved 2 slots: Propulsion x1, Utility x1 4325 | -8/Materials | Identified exit to Storage 5042 | -8/Materials | Discovered new exit (range 10) 5151 | -8/Materials | Repaired Hrd. Light Armor Plating 5203 | -8/Materials | Repaired Imp. Assault Rifle 5237 | -8/Materials | Repaired Rocket Launcher+ 5670 | -8/Materials | Entered Storage 5890 | -8/Storage | Lost 3 parts (1n2u) 5982 | -8/Storage | Core integrity fell below 50% 6153 | -8/Storage | Build established: Scavenger-Mutant 6248 | -8/Storage | Met 01-MTF 6465 | -8/Storage | Discovered new exit (range 5) 6639 | -8/Storage | Repaired Carbon-fiber Leg 6651 | -8/Storage | Used back door to open Recycling access 6651 | -8/Storage | Discovered new exit (range 4) 6741 | -8/Storage | Entered Recycling 6741 | -8/Recycling | Accompanied by 1 ally (01-MTF) 7260 | -8/Recycling | Identified exit to Factory 7335 | -8/Recycling | Learned location of 1 exit from Recycling 7405 | -8/Recycling | Scanned before Scraplab entrance 7453 | -8/Recycling | Learned location of 3 exits from Factory 7495 | -8/Recycling | Learned location of 1 exit from Recycling 7498 | -8/Recycling | Entered Scraplab 7507 | -8/Recycling | Discovered new exit (range 3) 7551 | -8/Recycling | Learned 4 Lower Caves zone layouts 7561 | -8/Recycling | Build established: Commander-Mutant 7582 | -8/Recycling | Learned Storage stockpile data 7676 | -8/Recycling | Learned Factory terminal intel 7813 | -8/Recycling | Entered Scraptown 7813 | -8/Scraptown | Accompanied by 6 allies 8165 | -8/Scraptown | Visited Bundlers 8228 | -8/Scraptown | Visited Cave Peace 8254 | -8/Scraptown | Visited Junk Repository 8333 | -8/Scraptown | Visited TADAMA 8363 | -8/Scraptown | Visited The Evicted 8458 | -8/Scraptown | Visited Spacefarers 8495 | -8/Scraptown | Visited Symbiants 8593 | -8/Scraptown | Visited UFD Registry 8593 | -8/Scraptown | Registered with UFD as "Longslicer" 8618 | -8/Scraptown | Visited Science Guys 8663 | -8/Scraptown | Visited Observation Area 8694 | -8/Scraptown | Visited DA-N13 Charitable Foundation 8699 | -8/Scraptown | Found DCF Scrap (32 items) 8830 | -8/Scraptown | Visited Research Penetration Think Tank 8854 | -8/Scraptown | Visited Abandonware Association 8868 | -8/Scraptown | Learned abandonware demo "SHUTEYE.EXE" 8890 | -8/Scraptown | Visited A0-MCA Data Center 8896 | -8/Scraptown | Given a B+ rating by A0-MCA 8901 | -8/Scraptown | Found A0-MCA's Component Scanner 8924 | -8/Scraptown | Visited Derelict Rescue Squad 8977 | -8/Scraptown | Visited Curators Association 9071 | -8/Scraptown | Met Optimus 9071 | -8/Scraptown | Accepted into 0bPrime 9143 | -8/Scraptown | Entered Factory 9143 | -6/Factory | Accompanied by 1 ally 9143 | -6/Factory | Evolved 4 slots: Power x1, Utility x3 9144 | -6/Factory | Identified exit to Factory 9144 | -6/Factory | Identified exit to Lower Caves 9145 | -6/Factory | Identified exit to Extension 9146 | -6/Factory | Loaded intel: 28 terminal locations 9265 | -6/Factory | Assembled infested ambush trap array 9566 | -6/Factory | Build established: Skirmisher 9813 | -6/Factory | Discovered exit to Factory (range 14) 9898 | -6/Factory | Garrison activated, responded to threat 10108 | -6/Factory | Lost 3 parts (1p2n) 10745 | -6/Factory | Build established: Scavenger-Skirmisher 10968 | -6/Factory | System corruption reached 10% 11051 | -6/Factory | Lost 5 parts (1p4n) 11502 | -6/Factory | Build established: Scavenger-Mutant 11568 | -6/Factory | Entered Extension 11700 | -6/Extension | Destroyed 9 combat bots 11701 | -6/Extension | Lost 4 parts (2n1u1w) 11818 | -6/Extension | Core integrity fell below 50% 11844 | -6/Extension | Lost 4 parts (3u1w) 11957 | -6/Extension | Rescued a captive Derelict 11996 | -6/Extension | Rescued a captive Derelict 11997 | -6/Extension | Rescued a captive Derelict 12489 | -6/Extension | Spotted B-75 Beast 12509 | -6/Extension | Destroyed B-75 Beast 12542 | -6/Extension | Spotted B-75 Beast 12545 | -6/Extension | Destroyed B-75 Beast 12568 | -6/Extension | Disrupted transfer network 12575 | -6/Extension | Lost 6 allies 12577 | -6/Extension | Lost 7 parts (2p4n1w) 12688 | -6/Extension | Rescued a captive Derelict 12689 | -6/Extension | Rescued a captive Derelict 12756 | -6/Extension | Rescued a captive Derelict 12756 | -6/Extension | Rescued a captive Derelict 12894 | -6/Extension | Rescued a captive Derelict 12895 | -6/Extension | Rescued a captive Derelict 13111 | -6/Extension | Disrupted transfer network 13133 | -6/Extension | Rescued a captive Derelict 13173 | -6/Extension | Rescued A7 13173 | -6/Extension | Core integrity fell below 20% 13177 | -6/Extension | Attached CPS modules to A7. 13185 | -6/Extension | Lost 3 allies 13288 | -6/Extension | Discovered exit to Factory (range 10) 13289 | -6/Extension | Discovered new exit (range 6) 13442 | -6/Extension | Identified exit to Cetus 13463 | -6/Extension | Entered Cetus 13463 | -6/Cetus | Accompanied by 3 allies (A7) 13468 | -6/Cetus | Acquired a Cetus Manufacturing Module code from A7 13482 | -6/Cetus | Spotted Cetus Guard 13482 | -6/Cetus | Spotted Cetus Guard 13484 | -6/Cetus | Spotted Cetus Guard 13486 | -6/Cetus | Spotted Cetus Guard 13496 | -6/Cetus | Allies destroyed Cetus Guard 13508 | -6/Cetus | Allies destroyed Cetus Guard 13516 | -6/Cetus | Allies destroyed Cetus Guard 13525 | -6/Cetus | Destroyed Cetus Guard 13570 | -6/Cetus | System corruption reached 30% 13660 | -6/Cetus | Started Cetus Manufacturing Module 13684 | -6/Cetus | Escorted A7 to Cetus Mainframe 13685 | -6/Cetus | Manufactured an Enhanced Grunt 13705 | -6/Cetus | Discovered new exit (range 16) 13710 | -6/Cetus | Manufactured an Enhanced Grunt 13728 | -6/Cetus | Identified exit to Archives 13735 | -6/Cetus | Manufactured an Enhanced Grunt 13760 | -6/Cetus | Manufactured an Enhanced Grunt 13785 | -6/Cetus | Manufactured an Enhanced Grunt 13852 | -6/Cetus | Spotted Cetus Guard 13852 | -6/Cetus | Spotted Cetus Guard 13855 | -6/Cetus | Spotted Cetus Guard 13856 | -6/Cetus | Spotted Cetus Guard 13861 | -6/Cetus | Allies destroyed Cetus Guard 13868 | -6/Cetus | Allies destroyed Cetus Guard 13876 | -6/Cetus | Allies destroyed Cetus Guard 13877 | -6/Cetus | Allies destroyed Cetus Guard 13889 | -6/Cetus | Discovered exit to Factory (range 15) 13897 | -6/Cetus | Met Revision 17 13963 | -6/Cetus | Found Prototype Device 13963 | -6/Cetus | Identified Exp. Thermal Shield 14096 | -6/Cetus | Murdered A7 14099 | -6/Cetus | Extracted ID and sensor layout for unrecognized location from A7's data core 14103 | -6/Cetus | Found Prototype Protection 14103 | -6/Cetus | Identified Med. Regenerative Plating 14156 | -6/Cetus | Entered Archives 14156 | -6/Archives | Accompanied by 3 allies 14355 | -6/Archives | Discovered new exit (range 15) 14373 | -6/Archives | Discovered exit to Factory (range 16) 14398 | -6/Archives | Discovered new exit (range 16) 14734 | -6/Archives | Entered Factory 14734 | -5/Factory | Accompanied by 3 allies 14734 | -5/Factory | Evolved 2 slots: Utility x2 14852 | -5/Factory | Loaded intel: 8 recycling unit locations 15241 | -5/Factory | Watched by a mysterious "MATRIX" hacker. 15257 | -5/Factory | Discovered new exit (range 15) 15334 | -5/Factory | Identified exit to Factory 15336 | -5/Factory | Discovered new exit (range 16) 15358 | -5/Factory | Identified exit to Upper Caves 15382 | -5/Factory | Entered Upper Caves 15382 | -5/Upper Caves | Accompanied by 3 allies 15428 | -5/Upper Caves | Attracted the attention of an 0b10 checkpoint 15502 | -5/Upper Caves | Build established: Hacker-Mutant 15628 | -5/Upper Caves | Encountered a Warlord checkpoint 15776 | -5/Upper Caves | Attracted the attention of an 0b10 base 16082 | -5/Upper Caves | Discovered new exit (range 15) 16105 | -5/Upper Caves | Identified exit to Upper Caves 16640 | -5/Upper Caves | Entered another Upper Caves area 16640 | -5/Upper Caves | Accompanied by 3 allies 16713 | -5/Upper Caves | Discovered exit to Factory (range 15) 17060 | -5/Upper Caves | Learned Factory security intel 17063 | -5/Upper Caves | Learned location of 2 exits from Factory 17199 | -5/Upper Caves | Discovered new exit (range 5) 17204 | -5/Upper Caves | Identified exit to Zhirov 17215 | -5/Upper Caves | Attacked by a delusional Derelict stockpiling parts 17276 | -5/Upper Caves | Entered Zhirov 17276 | -5/Zhirov | Accompanied by 1 ally 17278 | -5/Zhirov | Discovered new exit (range 3) 17281 | -5/Zhirov | Identified exit to Proximity Caves 17306 | -5/Zhirov | Met Zhirov 17341 | -5/Zhirov | Learned location of Quarantine (-2) 17341 | -5/Zhirov | Learned location of Command (-1) 17351 | -5/Zhirov | Zhirov requested help retrieving the SGEMP Prototype 17376 | -5/Zhirov | Found Alien Artifact 17376 | -5/Zhirov | Identified Transdimensional Reconstructor 17376 | -5/Zhirov | Warped through subspace 17440 | -5/Zhirov | Found Alien Artifact 17440 | -5/Zhirov | Identified Integrated Reactor 17440 | -5/Zhirov | Installed Integrated Reactor, increased core energy generation (+10) 17563 | -5/Zhirov | Entered Proximity Caves 17563 | -4/Proximity Caves | Accompanied by 1 ally 17798 | -4/Proximity Caves | Received a Behemoth hack from an annoying Tinkerer 17855 | -4/Proximity Caves | Learned 4 Research zone layouts 18158 | -4/Proximity Caves | Learned 4 Research zone layouts 18214 | -4/Proximity Caves | Attracted the attention of an 0b10 checkpoint 18299 | -4/Proximity Caves | Spotted B-86 Titan 18407 | -4/Proximity Caves | Build established: Scavenger-Mutant 18411 | -4/Proximity Caves | Destroyed B-86 Titan 18441 | -4/Proximity Caves | Discovered exit to Factory (range 14) 18468 | -4/Proximity Caves | Entered Factory 18468 | -4/Factory | Evolved 2 slots: Utility x2 18469 | -4/Factory | Identified exit to Research 18469 | -4/Factory | Identified exit to Armory 18836 | -4/Factory | Build established: Hacker-Mutant 19514 | -4/Factory | Build established: Scavenger-Mutant 19735 | -4/Factory | Garrison activated, responded to threat 20376 | -4/Factory | Entered Research 20376 | -3/Research | Evolved 2 slots: Utility x2 20377 | -3/Research | Identified exit to Research 20511 | -3/Research | Identified exit to Testing 20576 | -3/Research | Revision forces began assault on 0b10 20599 | -3/Research | Met up with Revision 17++ 21076 | -3/Research | Research terminal network offline 21224 | -3/Research | Loaded intel: 5 recycling unit locations 21224 | -3/Research | Learned location of Protoforge (-2) 21299 | -3/Research | Spotted Striker 21311 | -3/Research | Destroyed Striker 21311 | -3/Research | Spotted Striker 21361 | -3/Research | Spotted Executioner 21362 | -3/Research | Destroyed Executioner 21397 | -3/Research | Found Prototype Processor 21397 | -3/Research | Identified Exp. Targeting Computer 21426 | -3/Research | Spotted Striker 21426 | -3/Research | Spotted Executioner 21462 | -3/Research | Entered Testing 21506 | -3/Testing | Build established: Hacker-Mutant 21614 | -3/Testing | Central database locked down 22005 | -3/Testing | System corruption reached 10% 22151 | -3/Testing | Found Prototype Hackware 22151 | -3/Testing | Identified System Mapper 22277 | -3/Testing | Found Prototype Energy Gun 22277 | -3/Testing | Identified Warp Gun 22460 | -3/Testing | Build established: Wizard-Skirmisher 22546 | -3/Testing | Lost 5 parts (3n1u1w) 22646 | -3/Testing | Scanned by Researcher 22678 | -3/Testing | Found Hvy. Regenerative Plating 22683 | -3/Testing | Found Prototype Protection 22756 | -3/Testing | Identified SHELL Armor 22829 | -3/Testing | Build established: Wizard-Mutant 22977 | -3/Testing | Entered Research 22977 | -2/Research | Evolved 2 slots: Propulsion x1, Utility x1 23276 | -2/Research | Discovered new exit (range 7) 23337 | -2/Research | Identified exit to Access 23395 | -2/Research | Identified exit to Quarantine 23434 | -2/Research | Entered Quarantine 23450 | -2/Quarantine | Targeted by mysterious "MATRIX" hacker. 23472 | -2/Quarantine | Central database locked down 23553 | -2/Quarantine | Found Exp. Thermal Shield 23666 | -2/Quarantine | Found Alien Artifact 23667 | -2/Quarantine | Identified Phase Redirector 23688 | -2/Quarantine | Cryocooling Duct disabled 23703 | -2/Quarantine | Ambient heat levels rising (+20) 23703 | -2/Quarantine | Non-combat units ordered to evacuate 23766 | -2/Quarantine | Build established: Wizard-Skirmisher 23792 | -2/Quarantine | Found Alien Impact Weapon 23792 | -2/Quarantine | Identified Core Stripper 24121 | -2/Quarantine | Found Alien Energy Cannon 24121 | -2/Quarantine | Identified Core Cannon 24178 | -2/Quarantine | Spotted Fortress 24205 | -2/Quarantine | Destroyed Fortress 24252 | -2/Quarantine | Found Prototype Reactor 24252 | -2/Quarantine | Identified Vortex Chain Reactor 24256 | -2/Quarantine | Found Vortex Chain Reactor 24259 | -2/Quarantine | Found Prototype Device 24259 | -2/Quarantine | Identified Exp. EM Shield 24262 | -2/Quarantine | Found Prototype Device 24262 | -2/Quarantine | Identified Exp. Force Field 24299 | -2/Quarantine | Found Prototype Protection 24299 | -2/Quarantine | Identified Centrium Heavy Armor Plating 24306 | -2/Quarantine | Found Prototype Device 24306 | -2/Quarantine | Identified Thermal Barrier 24431 | -2/Quarantine | Discovered new exit (range 5) 24431 | -2/Quarantine | Discovered new exit (range 6) 24436 | -2/Quarantine | Identified exit to Section 7 24441 | -2/Quarantine | Identified exit to Protoforge 24442 | -2/Quarantine | Entered Protoforge 24460 | -2/Protoforge | Build established: Wizard-Mutant 24538 | -2/Protoforge | Central database locked down 24669 | -2/Protoforge | Spotted Hotshot 24678 | -2/Protoforge | Superfortress began startup sequence 24973 | -2/Protoforge | Spotted EXE-6 24985 | -2/Protoforge | Spotted EXE-6 25010 | -2/Protoforge | Spotted SKR-2 25018 | -2/Protoforge | System corruption reached 10% 25032 | -2/Protoforge | Destroyed EXE-6 25040 | -2/Protoforge | Destroyed EXE-6 25055 | -2/Protoforge | Found Corrupted Prototype Device 25055 | -2/Protoforge | Identified Exp. Kinecellerator 25061 | -2/Protoforge | Spotted SKR-2 25085 | -2/Protoforge | Spotted SKR-2 25113 | -2/Protoforge | Destroyed SKR-2 25126 | -2/Protoforge | Destroyed SKR-2 25135 | -2/Protoforge | Destroyed SKR-2 25197 | -2/Protoforge | UFD initiated attack on Protoforge (Readiness: Low) 25197 | -2/Protoforge | Loaded intel: 3 recycling unit locations 25231 | -2/Protoforge | Scrapoids reinforcements arrived? 25233 | -2/Protoforge | Optimus greeted in Protoforge 25241 | -2/Protoforge | Scrapoids reinforcements arrived? 25381 | -2/Protoforge | Met 7R-MNS 25466 | -2/Protoforge | Found Prototype Device 25466 | -2/Protoforge | Identified Exp. System Purifier 25502 | -2/Protoforge | Found Prototype Device 25502 | -2/Protoforge | Identified Exp. Trap Extractor 25506 | -2/Protoforge | Lost 6 allies 25517 | -2/Protoforge | Found Prototype Storage 25517 | -2/Protoforge | Identified Cep. NT7 Matterbank 25531 | -2/Protoforge | Spotted Striker 25531 | -2/Protoforge | Spotted Executioner 25547 | -2/Protoforge | Spotted Immortal 25553 | -2/Protoforge | Core integrity fell below 50% 25567 | -2/Protoforge | Core integrity fell below 20% 25585 | -2/Protoforge | Lost 9 parts (1p3n3u2w) 25638 | -2/Protoforge | Spotted Executioner 25639 | -2/Protoforge | Spotted Executioner 25645 | -2/Protoforge | Destroyed by Executioner with Helical Railgun Last Messages --------------- 25621_ Acquired 13 matter. 25623_ System corrupted: Matter fused (-10). 25623_ Acquired 10 matter. 25627_ ALERT: Hostile activity reported, dispatching reinforcements to area. 25630_ Acquired Imp. Antigrav System. 25632_ Acquired 10 matter. 25638_ N-04 Retriever collects Adv. Visual Processing Unit. 25638_ N-04 Retriever collects Antigrav System. 25639_ Slug penetrates Forge Pylon. 25640_ N-04 Retriever collects Mak. Coolant Network. 25640_ N-04 Retriever collects Mak. Thermal Plating. 25640_ N-04 Retriever inserts Unknown Treads into Forge Plexus. 25642_ Imp. Antigrav System destroyed. 25642_ Forge Pylon damaged. 25645_ Penetrated by Slug. Map ----- +----------------------------------------------------+ | ??##????????????????????????????????????????"""""" | | ??##??????????????? ??????????????????""""""" | | ####????????????? & % % %???????????????"""""""" | | ?###?????????? " %&%%% """???????????""""""""" | | ?##????????? """ %%& """""????????"""""""""" | | ?##???????# " """ " =""%%!"""""""??????"""""""""" | | ?##???????# "" !&!%%["""""""?????""""""""""" | | ?##???????# &[[!%%%"""""""???"""""""""""" | | ?##???????# !*!!%%%"""""""?"""""""""""""" | | ###???????# """"""" =![%%%"""""""""""""""""""""" | | ###???????# """ " [!![%%%""""""""""""""""""""" | | ??????????# % " =![%%%%%"""""""""""""""""""" | | ??????????# ""**!]%!%n""""""""""""""""""" | | ??????????# "" "" =[!!&%% """""""""""""""""" | | ??????????# "" "" =" %n""""""""""""""""" | | ???######## "" """ %%""""""""""""""" | | ########### " " % """"""""" | | #####????## " "" % % "" | | ?????????## " " """ " """%" | | ????#????## " """ " " | | ????#????## "" " E """" "" | | ?????????## " " "" " """ """ "" "" | | #####????## " " """ " | | #####????## " " " """ " " " | | ???##????## "" "" " " " " | | #####????## " "" @ " """ | | ########### "" "" " """"" "" """ | | ## ## "" " " " " | | ## """!## "" "" " | | ## !%%#%% "" % """"""""" | | ## """ ## "" " """" " " "" | | ?# ##| "" % % " % % """"""""" | | / "" ######### %############################## | | # "" ##??????####????????????????????????????? | | ## T"##??????????????????????????????????????? | | ?# """##??????????????????????????????????????? | | ?# " ##??????????????????????????????????????? | | ?# ##??????????????????????????????????????? | | ?##########??????????????????????????????????????? | | ?# ###??????????????????????????????????????? | | ?# ##???????????????????????????????????????? | | ?# ##???????????????????????????????????????? | | ?# ##???????????????????????????????????????? | | ?####+####???????????????????????????????????????? | | ?## ##???????????????????????????????????????? | | ?## ##???????????????????????????????????????? | | ?## " ##???????????????????????????????????????? | | ?## ##???????????????????????????????????????? | | ### ##???????????????????????????????????????? | | ##### ####???????????????????????????????????????? | +----------------------------------------------------+ Best States ------------- Heat Dissipation 158 Energy Generation 80 Energy Capacity 710 Matter Stores 300 Matter Capacity 1050 Sight Range 16 Robot Scan Range 20 Terrain Scan Range 24 Terrain Scan Density 210 ECM Strength 2 Jamming Range 14 Cloak Strength 2 Power Amplification 30 Armor Coverage 1800 Resistance: TH 50 Resistance: EM 75 Phase Shifting 10 Evasion (%) 70 Targeting Accuracy 12 Melee Accuracy 5 Core Analysis 6 Armor Integrity Analysis 30 Recoil Reduction 5 Offensive Hacking 48 Defensive Hacking 14 Item Schematics ----------------- Structural Scanner | -9/Materials | Scanalyzed Adv. EMP Blaster | -9/Materials | Scanalyzed Assault Drone Bay | -5/Zhirov | Free Exp. Heat Sink | -5/Zhirov | Free Exp. Optical Array | -5/Zhirov | Free Imp. Arc Thrower | -5/Zhirov | Free Adv. Plasma Cannon | -3/Research | Scanalyzed Imp. Force Field | -3/Testing | Scanalyzed Centrium Heavy Treads | -3/Testing | Hacked Enh. Coil Gun | -3/Testing | Archive Exp. Energy Well | -3/Testing | Archive Hvy. Proton Missile Launcher | -3/Testing | Archive Imp. Diametric Drive | -3/Testing | Archive Cld. Impulse Thruster | -3/Testing | Archive Hvy. Regenerative Plating | -3/Testing | Hacked Robot Schematics ------------------ B-74 Champion | -3/Testing | Archive Fabricated ------------ Nothing Repaired ---------- Lgt. Treads | 58% | -10/Materials Seismic Detector | 25% | -10/Materials Med. Laser | 38% | -10/Materials Lgt. Assault Rifle | 63% | -10/Materials Lgt. Treads | 30% | -9/Materials Lgt. Treads | 31% | -9/Materials Hrd. Light Armor Plating | 38% | -8/Materials Imp. Assault Rifle | 55% | -8/Materials Rocket Launcher | 48% | -8/Materials Carbon-fiber Leg | 10% | -8/Storage Studied --------- Aluminum Leg | -9/Materials | Hacked Autogun | -9/Materials | Hacked Rocket Launcher | -9/Materials | Hacked Com. Wheel | -6/Factory | Hacked Wheel | -6/Factory | Hacked Phase Cannon | -6/Factory | Hacked Lrn. Missile Launcher | -6/Factory | Hacked KE Penetrator | -5/Factory | Hacked Coil Gun | -5/Factory | Hacked Remote Datajack | -5/Factory | Hacked Micro-nuke Launcher | -3/Research | Hacked Hvy. Phase Cannon | -3/Research | Hacked Lgt. Antimatter Reactor | -3/Research | Hacked Biometal Medium Treads | -3/Research | Hacked Myomer Leg | -3/Research | Hacked Neutrino Core | -3/Research | Hacked Adv. Plasma Cannon | -3/Research | Hacked Imp. Remote Datajack | -3/Research | Hacked Wave Gun | -3/Research | Hacked Nova Cannon | -3/Testing | Hacked Quantum Rifle | -3/Testing | Hacked Centrium Leg | -2/Quarantine | Hacked Enh. Nova Cannon | -2/Protoforge | Hacked Enh. Quantum Rifle | -2/Protoforge | Hacked Matter Neutralizer | -2/Protoforge | Hacked Adv. Remote Datajack | -2/Protoforge | Hacked Alien Tech Used ----------------- Transdimensional Reconstructor Integrated Reactor Phase Redirector Core Stripper Core Cannon Achievements -------------- Partsplosion We Are One Challenges ------------ None Game ------ Seed LatentPoweredDeck Manual? 0 Play Time 03:47:59 Cumulative 359.2 hours Start 2026.02.26 @ 16:39:21 End 2026.02.26 @ 21:10:04 Sessions 1 Manual Loads 0 Difficulty Rogue Special Mode None Game No. 228 Rogue 228 Adventurer 0 Explorer 0 Win Type - Total 13 Types 9/1/1/1/0/0/0/1/0/0 Lore% 93 Gallery% 79 Achievement% 69 Wizard Run 0 Options --------- Layout 1 ASCII 0 Keyboard 0 Movement Mouse Keybinds 0 Fullscreen 2 Font 32/SmallcapsGlow Map View 50x35 Zoom Use 0% Tactical HUD 1 Map Filters NONE Filters NONE Steam 1 RUN: 868274c8-c4b1-4c8c-b079-a226b407bb92